[Event "Jeux du Barreau 2019"]
[Site "Paris, France"]
[Date "2019.07.10"]
[Round "1.8"]
[White "Clair, Michael"]
[Black "Lanoe-Campbell, Luca"]
[Result "1-0"]
[TimeControl "15+3"]
[WhiteElo "1726"]
[BlackElo "1379"]

1. e4 {[%clk 00:14:13]} {[%emt 00:00:52]} c6 {[%clk 00:15:01]} {[%emt
00:00:05]} 2. d4 {[%clk 00:14:04]} {[%emt 00:00:11]} d5 {[%clk 00:15:00]}
{[%emt 00:00:04]} 3. Nd2 {[%clk 00:13:51]} {[%emt 00:00:16]} dxe4 {[%clk
00:13:46]} {[%emt 00:01:17]} 4. Nxe4 {[%clk 00:13:49]} {[%emt 00:00:05]} Bf5
{[%clk 00:13:20]} {[%emt 00:00:29]} 5. Ng3 {[%clk 00:13:40]} {[%emt 00:00:12]}
Bg6 {[%clk 00:12:31]} {[%emt 00:00:52]} 6. Nh3 {[%clk 00:13:22]} {[%emt
00:00:20]} e5 {[%clk 00:11:25]} {[%emt 00:01:09]} 7. dxe5 {[%clk 00:12:19]}
{[%emt 00:01:06]} Qxd1+ {[%clk 00:11:13]} {[%emt 00:00:15]} 8. Kxd1 {[%clk
00:12:15]} {[%emt 00:00:08]} Bc5 {[%clk 00:10:37]} {[%emt 00:00:40]} 9. Bg5
{[%clk 00:08:58]} {[%emt 00:03:19]} Nd7 {[%clk 00:09:29]} {[%emt 00:01:11]} 10.
f4 {[%clk 00:08:34]} {[%emt 00:00:27]} h6 {[%clk 00:08:45]} {[%emt 00:00:48]}
11. Bh4 {[%clk 00:08:22]} {[%emt 00:00:14]} Be7 {[%clk 00:08:19]} {[%emt
00:00:29]} 12. Bxe7 {[%clk 00:07:24]} {[%emt 00:01:01]} Nxe7 {[%clk 00:08:19]}
{[%emt 00:00:03]} 13. Bc4 {[%clk 00:05:48]} {[%emt 00:01:39]} b5 {[%clk
00:07:28]} {[%emt 00:00:55]} 14. Bb3 {[%clk 00:05:35]} {[%emt 00:00:16]} Nc5
{[%clk 00:07:20]} {[%emt 00:00:10]} 15. Ke2 {[%clk 00:04:22]} {[%emt 00:01:15]}
Nxb3 {[%clk 00:07:16]} {[%emt 00:00:08]} 16. cxb3 {[%clk 00:04:09]} {[%emt
00:00:15]} O-O {[%clk 00:07:17]} {[%emt 00:00:03]} 17. Rad1 {[%clk 00:03:49]}
{[%emt 00:00:23]} h5 {[%clk 00:05:33]} {[%emt 00:01:47]} 18. Nf1 {[%clk
00:02:53]} {[%emt 00:00:58]} Be4 {[%clk 00:04:22]} {[%emt 00:01:14]} 19. Ne3
{[%clk 00:01:58]} {[%emt 00:00:58]} Nf5 {[%clk 00:03:55]} {[%emt 00:00:30]} 20.
Rhg1 {[%clk 00:01:25]} {[%emt 00:00:36]} Rad8 {[%clk 00:03:29]} {[%emt
00:00:29]} 21. Nxf5 {[%clk 00:01:12]} {[%emt 00:00:17]} Bxf5 {[%clk 00:03:07]}
{[%emt 00:00:25]} 22. Nf2 {[%clk 00:00:48]} {[%emt 00:00:27]} Rxd1 {[%clk
00:02:47]} {[%emt 00:00:23]} 23. Rxd1 {[%clk 00:00:47]} {[%emt 00:00:04]} Re8
{[%clk 00:02:33]} {[%emt 00:00:16]} 24. Kf3 {[%clk 00:00:34]} {[%emt 00:00:16]}
c5 {[%emt 00:00:30]} 25. h3 {[%emt 00:00:01]} h4 {[%clk 00:01:58]} {[%emt
00:00:11]} 26. Ne4 {[%clk 00:00:38]} {[%emt 00:00:02]} Bxe4+ {[%clk 00:01:35]}
{[%emt 00:00:26]} 27. Kxe4 {[%clk 00:00:40]} {[%emt 00:00:02]} Rc8 {[%clk
00:01:11]} {[%emt 00:00:26]} 28. Rd7 {[%clk 00:00:30]} {[%emt 00:00:13]} c4
{[%clk 00:00:53]} {[%emt 00:00:21]} 29. Rxa7 {[%clk 00:00:20]} {[%emt
00:00:13]} cxb3 {[%clk 00:00:44]} {[%emt 00:00:11]} 30. axb3 {[%clk 00:00:20]}
{[%emt 00:00:03]} Rc2 {[%clk 00:00:41]} {[%emt 00:00:06]} 31. f5 {[%clk
00:00:19]} {[%emt 00:00:04]} Rxg2 {[%clk 00:00:34]} {[%emt 00:00:09]} 32. Kf4
{[%clk 00:00:16]} {[%emt 00:00:07]} Rxb2 {[%clk 00:00:22]} {[%emt 00:00:14]} 33.
e6 {[%clk 00:00:18]} fxe6 {[%clk 00:00:18]} {[%emt 00:00:09]} 34. fxe6 {[%clk
00:00:20]} {[%emt 00:00:01]} Rf2+ {[%clk 00:00:10]} {[%emt 00:00:11]} 35. Ke5
{[%clk 00:00:22]} {[%emt 00:00:01]} Re2+ {[%clk 00:00:08]} {[%emt 00:00:04]} 36.
Kd6 {[%clk 00:00:24]} g5 {[%clk 00:00:05]} {[%emt 00:00:07]} 37. e7 {[%clk
00:00:25]} {[%emt 00:00:02]} 1-0

[Event "Jeux du Barreau 2019"]
[Site "Paris, France"]
[Date "2019.07.10"]
[Round "1.9"]
[White "Lepetit, Jean Pierre"]
[Black "Beaulier, Benjamin"]
[Result "0-1"]
[TimeControl "15+3"]
[WhiteElo "1078"]
[BlackElo "1658"]

1. e4 {[%clk 00:15:04]} {[%emt 00:00:01]} e6 {[%clk 00:15:05]} {[%emt
00:00:02]} 2. Nf3 {[%clk 00:15:01]} {[%emt 00:00:06]} d5 {[%clk 00:15:06]}
{[%emt 00:00:02]} 3. exd5 {[%clk 00:15:01]} {[%emt 00:00:03]} exd5 {[%clk
00:15:08]} {[%emt 00:00:01]} 4. d4 {[%clk 00:15:00]} {[%emt 00:00:04]} Nf6
{[%clk 00:15:01]} {[%emt 00:00:10]} 5. Nc3 {[%clk 00:14:56]} {[%emt 00:00:08]}
Be7 {[%clk 00:14:56]} {[%emt 00:00:08]} 6. Bd3 {[%clk 00:14:50]} {[%emt
00:00:08]} Bg4 {[%clk 00:14:55]} {[%emt 00:00:04]} 7. O-O {[%clk 00:14:49]}
{[%emt 00:00:05]} O-O {[%clk 00:14:55]} {[%emt 00:00:04]} 8. h3 {[%clk
00:14:09]} {[%emt 00:00:42]} Bh5 {[%clk 00:14:51]} {[%emt 00:00:06]} 9. b3
{[%clk 00:13:47]} {[%emt 00:00:26]} Nc6 {[%clk 00:14:45]} {[%emt 00:00:10]} 10.
Bb2 {[%clk 00:13:33]} {[%emt 00:00:17]} Nxd4 {[%clk 00:14:14]} {[%emt
00:00:34]} 11. Rc1 {[%clk 00:13:14]} {[%emt 00:00:22]} c5 {[%clk 00:13:45]}
{[%emt 00:00:32]} 12. g4 {[%clk 00:12:49]} {[%emt 00:00:27]} Nxf3+ {[%clk
00:13:36]} {[%emt 00:00:13]} 13. Qxf3 {[%clk 00:12:28]} {[%emt 00:00:24]} Bg6
{[%clk 00:13:35]} {[%emt 00:00:04]} 14. Bxg6 {[%clk 00:10:58]} {[%emt
00:01:33]} fxg6 {[%clk 00:13:37]} {[%emt 00:00:02]} 15. Rcd1 {[%clk 00:10:28]}
{[%emt 00:00:33]} Ne4 {[%clk 00:11:33]} {[%emt 00:02:06]} 16. Qd3 {[%clk
00:09:30]} {[%emt 00:01:01]} Nxc3 {[%clk 00:11:19]} {[%emt 00:00:18]} 17. Bxc3
{[%clk 00:09:17]} {[%emt 00:00:16]} d4 {[%clk 00:11:04]} {[%emt 00:00:18]} 18.
Bb2 {[%clk 00:08:58]} {[%emt 00:00:22]} Qd5 {[%clk 00:09:52]} {[%emt 00:01:15]}
19. Rfe1 {[%clk 00:07:54]} {[%emt 00:01:07]} Bh4 {[%clk 00:08:14]} {[%emt
00:01:41]} 20. Re2 {[%clk 00:06:59]} {[%emt 00:00:59]} Rf3 {[%clk 00:07:43]}
{[%emt 00:00:34]} 21. Qc4 {[%clk 00:06:38]} {[%emt 00:00:24]} Qxc4 {[%clk
00:07:15]} {[%emt 00:00:31]} 22. bxc4 {[%clk 00:06:39]} {[%emt 00:00:02]} Raf8
{[%clk 00:06:59]} {[%emt 00:00:18]} 23. Rdd2 {[%clk 00:04:59]} {[%emt
00:01:43]} Rxh3 {[%clk 00:06:36]} {[%emt 00:00:26]} 24. Ba3 {[%clk 00:04:29]}
{[%emt 00:00:34]} b6 {[%clk 00:06:38]} {[%emt 00:00:02]} 25. Rd3 {[%clk
00:04:06]} {[%emt 00:00:26]} Rff3 {[%clk 00:06:21]} {[%emt 00:00:20]} 26. Rxf3
{[%clk 00:03:27]} {[%emt 00:00:42]} Rxf3 {[%clk 00:06:21]} {[%emt 00:00:02]} 27.
Kg2 {[%clk 00:03:28]} {[%emt 00:00:02]} Rxa3 {[%clk 00:06:20]} {[%emt
00:00:05]} 28. Re8+ {[%clk 00:03:24]} {[%emt 00:00:07]} Kf7 {[%clk 00:06:22]}
{[%emt 00:00:01]} 29. Re4 {[%clk 00:02:59]} {[%emt 00:00:29]} Rxa2 {[%clk
00:06:02]} {[%emt 00:00:23]} 30. Re5 {[%clk 00:02:58]} {[%emt 00:00:03]} Rxc2
{[%clk 00:05:52]} {[%emt 00:00:12]} 31. Kh3 {[%clk 00:02:56]} {[%emt 00:00:05]}
Bf6 {[%clk 00:05:46]} {[%emt 00:00:09]} 32. Re4 {[%clk 00:02:50]} {[%emt
00:00:07]} a5 {[%clk 00:05:41]} {[%emt 00:00:10]} 33. Rf4 {[%clk 00:02:51]}
{[%emt 00:00:02]} Ke7 {[%clk 00:05:35]} {[%emt 00:00:08]} 34. g5 {[%clk
00:02:52]} {[%emt 00:00:02]} Bxg5 {[%clk 00:05:30]} {[%emt 00:00:09]} 35. Re4+
{[%clk 00:02:53]} {[%emt 00:00:02]} Kf6 {[%clk 00:05:30]} {[%emt 00:00:04]} 36.
Kg4 {[%clk 00:02:53]} {[%emt 00:00:02]} h5+ {[%clk 00:05:29]} {[%emt 00:00:04]}
37. Kf3 {[%clk 00:02:54]} {[%emt 00:00:02]} a4 {[%clk 00:05:24]} {[%emt
00:00:08]} 0-1

[Event "Jeux du Barreau 2019"]
[Site "Paris, France"]
[Date "2019.07.10"]
[Round "1.10"]
[White "Levy, David"]
[Black "Rabbe, Laurent"]
[Result "1-0"]
[TimeControl "15+3"]
[WhiteElo "1511"]
[BlackElo "1399"]

1. d4 {[%clk 00:15:03]} {[%emt 00:00:02]} d5 {[%clk 00:15:04]} {[%emt
00:00:02]} 2. c4 {[%clk 00:15:02]} {[%emt 00:00:04]} e6 {[%clk 00:15:02]}
{[%emt 00:00:05]} 3. Nc3 {[%clk 00:15:00]} {[%emt 00:00:04]} Nc6 {[%clk
00:14:59]} {[%emt 00:00:05]} 4. Nf3 {[%clk 00:15:00]} {[%emt 00:00:04]} Bb4
{[%clk 00:14:54]} {[%emt 00:00:08]} 5. Bg5 {[%clk 00:14:05]} {[%emt 00:00:58]}
Nf6 {[%clk 00:14:51]} {[%emt 00:00:06]} 6. e3 {[%clk 00:14:06]} {[%emt
00:00:01]} O-O {[%clk 00:14:41]} {[%emt 00:00:13]} 7. Bd3 {[%clk 00:14:08]}
{[%emt 00:00:02]} a6 {[%clk 00:12:58]} {[%emt 00:01:44]} 8. O-O {[%clk
00:14:02]} {[%emt 00:00:09]} dxc4 {[%clk 00:12:48]} {[%emt 00:00:13]} 9. Bxc4
{[%clk 00:14:04]} {[%emt 00:00:02]} b5 {[%clk 00:12:48]} {[%emt 00:00:02]} 10.
Bb3 {[%clk 00:12:50]} {[%emt 00:01:17]} Qd6 {[%clk 00:12:05]} {[%emt 00:00:46]}
11. Bf4 {[%clk 00:11:20]} {[%emt 00:01:33]} Qe7 {[%clk 00:10:08]} {[%emt
00:02:00]} 12. h3 {[%clk 00:11:06]} {[%emt 00:00:17]} e5 {[%clk 00:09:59]}
{[%emt 00:00:12]} 13. dxe5 {[%clk 00:11:02]} {[%emt 00:00:07]} Rd8 {[%clk
00:09:09]} {[%emt 00:00:53]} 14. exf6 {[%clk 00:09:15]} {[%emt 00:01:50]} Qxf6
{[%clk 00:07:46]} {[%emt 00:01:27]} 15. Qc2 {[%clk 00:08:21]} {[%emt 00:00:56]}
Bxh3 {[%clk 00:05:18]} {[%emt 00:02:31]} 16. Nd5 {[%clk 00:04:48]} {[%emt
00:03:36]} Qe6 {[%clk 00:03:47]} {[%emt 00:01:34]} 17. Ng5 {[%clk 00:02:54]}
{[%emt 00:01:57]} Bf5 {[%clk 00:03:14]} {[%emt 00:00:36]} 18. Nxe6 {[%clk
00:02:41]} {[%emt 00:00:16]} Bxc2 {[%clk 00:03:10]} {[%emt 00:00:06]} 19. Nxd8
{[%clk 00:02:42]} {[%emt 00:00:03]} Rxd8 {[%clk 00:03:07]} {[%emt 00:00:06]} 20.
Bxc2 {[%clk 00:02:42]} {[%emt 00:00:04]} Rxd5 {[%clk 00:02:47]} {[%emt
00:00:23]} 21. Be4 {[%clk 00:02:40]} {[%emt 00:00:04]} Rh5 {[%clk 00:02:12]}
{[%emt 00:00:37]} 22. Bxc6 {[%clk 00:02:35]} {[%emt 00:00:09]} g5 {[%clk
00:01:55]} {[%emt 00:00:19]} 23. Bxc7 {[%clk 00:02:24]} {[%emt 00:00:15]} Kg7
{[%clk 00:01:25]} {[%emt 00:00:33]} 24. Rad1 {[%clk 00:02:22]} {[%emt
00:00:06]} Rh6 {[%clk 00:01:08]} {[%emt 00:00:20]} 25. Bf3 {[%clk 00:02:18]}
{[%emt 00:00:06]} f5 {[%clk 00:00:53]} {[%emt 00:00:18]} 26. Be5+ {[%clk
00:02:13]} {[%emt 00:00:08]} Kg6 {[%clk 00:00:53]} {[%emt 00:00:03]} 27. Rd7
{[%clk 00:02:07]} {[%emt 00:00:09]} g4 {[%clk 00:00:40]} {[%emt 00:00:16]} 28.
Be2 {[%clk 00:01:54]} {[%emt 00:00:16]} Kg5 {[%clk 00:00:29]} {[%emt 00:00:12]}
29. Bf4+ {[%clk 00:01:54]} {[%emt 00:00:05]} Kh4 {[%clk 00:00:22]} {[%emt
00:00:11]} 30. Bxh6 {[%clk 00:01:52]} {[%emt 00:00:05]} g3 {[%clk 00:00:21]}
{[%emt 00:00:03]} 31. Rd4+ {[%emt 00:00:36]} 1-0

[Event "Jeux du Barreau 2019"]
[Site "Paris, France"]
[Date "2019.07.10"]
[Round "2.1"]
[White "Mungunkhuu, Mijgee"]
[Black "Spirta, Boris"]
[Result "1-0"]
[TimeControl "15+3"]
[WhiteElo "2219"]
[BlackElo "1811"]

1. d4 {[%clk 00:15:04]} {[%emt 00:00:02]} d6 {[%clk 00:15:03]} {[%emt
00:00:03]} 2. Nf3 {[%clk 00:15:04]} {[%emt 00:00:03]} Nf6 {[%clk 00:14:59]}
{[%emt 00:00:08]} 3. e3 {[%clk 00:15:04]} {[%emt 00:00:03]} g6 {[%clk
00:15:00]} {[%emt 00:00:01]} 4. Nbd2 {[%clk 00:15:04]} {[%emt 00:00:03]} Bg7
{[%clk 00:14:42]} {[%emt 00:00:21]} 5. Bd3 {[%clk 00:15:04]} {[%emt 00:00:03]}
O-O {[%clk 00:14:26]} {[%emt 00:00:18]} 6. O-O {[%clk 00:15:06]} {[%emt
00:00:03]} Nbd7 {[%clk 00:13:19]} {[%emt 00:01:10]} 7. c4 {[%clk 00:15:05]}
{[%emt 00:00:03]} e5 {[%clk 00:12:28]} {[%emt 00:00:55]} 8. Qc2 {[%clk
00:15:01]} {[%emt 00:00:08]} c5 {[%clk 00:09:41]} {[%emt 00:02:50]} 9. dxe5
{[%clk 00:14:38]} {[%emt 00:00:26]} Nxe5 {[%clk 00:09:16]} {[%emt 00:00:28]} 10.
Nxe5 {[%clk 00:14:39]} {[%emt 00:00:02]} dxe5 {[%clk 00:09:16]} {[%emt
00:00:03]} 11. e4 {[%clk 00:14:17]} {[%emt 00:00:25]} Nh5 {[%clk 00:05:25]}
{[%emt 00:03:55]} 12. Nf3 {[%clk 00:10:10]} {[%emt 00:04:10]} Nf4 {[%clk
00:04:02]} {[%emt 00:01:25]} 13. Bxf4 {[%clk 00:09:59]} {[%emt 00:00:14]} exf4
{[%clk 00:03:55]} {[%emt 00:00:11]} 14. Rad1 {[%clk 00:09:56]} {[%emt
00:00:05]} Qb6 {[%clk 00:03:04]} {[%emt 00:00:51]} 15. b3 {[%clk 00:09:55]}
{[%emt 00:00:07]} Bg4 {[%clk 00:02:49]} {[%emt 00:00:19]} 16. Be2 {[%clk
00:09:49]} {[%emt 00:00:09]} Rfe8 {[%clk 00:02:14]} {[%emt 00:00:38]} 17. Rd5
{[%clk 00:09:33]} {[%emt 00:00:19]} f5 {[%clk 00:02:01]} {[%emt 00:00:17]} 18.
h3 {[%clk 00:09:06]} fxe4 {[%emt 00:00:46]} 19. hxg4 {[%emt 00:00:02]} exf3
{[%clk 00:01:44]} {[%emt 00:00:01]} 20. Bxf3 {[%clk 00:09:07]} {[%emt
00:00:02]} Bd4 {[%clk 00:01:20]} {[%emt 00:00:26]} 21. Qd2 {[%clk 00:08:54]}
{[%emt 00:00:17]} Rad8 {[%clk 00:01:21]} {[%emt 00:00:02]} 22. Qxf4 {[%clk
00:08:48]} {[%emt 00:00:10]} Qe6 {[%clk 00:00:40]} {[%emt 00:00:43]} 23. Rxd8
{[%clk 00:08:43]} {[%emt 00:00:08]} Rxd8 {[%clk 00:04:04]} {[%emt 00:00:01]}
1-0

[Event "Jeux du Barreau 2019"]
[Site "Paris, France"]
[Date "2019.07.10"]
[Round "2.2"]
[White "Beaulier, Benjamin"]
[Black "Vandeweeghe, Simon"]
[Result "0-1"]
[TimeControl "15+3"]
[WhiteElo "1658"]
[BlackElo "2036"]

1. e4 {[%clk 00:15:03]} {[%emt 00:00:02]} c5 {[%clk 00:15:03]} {[%emt
00:00:03]} 2. d3 {[%clk 00:15:05]} {[%emt 00:00:01]} g6 {[%clk 00:15:04]}
{[%emt 00:00:02]} 3. g3 {[%clk 00:15:05]} {[%emt 00:00:03]} Bg7 {[%clk
00:15:06]} {[%emt 00:00:01]} 4. Bg2 {[%clk 00:15:05]} {[%emt 00:00:02]} e6
{[%clk 00:15:07]} {[%emt 00:00:03]} 5. f4 {[%clk 00:15:06]} {[%emt 00:00:02]}
Ne7 {[%clk 00:15:04]} {[%emt 00:00:06]} 6. Nf3 {[%clk 00:15:07]} {[%emt
00:00:02]} O-O {[%clk 00:15:03]} {[%emt 00:00:04]} 7. O-O {[%clk 00:15:08]}
{[%emt 00:00:01]} d5 {[%clk 00:14:19]} {[%emt 00:00:47]} 8. c3 {[%clk
00:14:19]} {[%emt 00:00:53]} Nbc6 {[%clk 00:14:12]} {[%emt 00:00:11]} 9. Na3
{[%clk 00:14:10]} {[%emt 00:00:12]} b6 {[%clk 00:14:00]} {[%emt 00:00:15]} 10.
Nc2 {[%clk 00:14:10]} {[%emt 00:00:02]} Ba6 {[%clk 00:13:44]} {[%emt 00:00:19]}
11. Rf2 {[%clk 00:13:51]} {[%emt 00:00:22]} dxe4 {[%clk 00:13:33]} {[%emt
00:00:14]} 12. Nfe1 {[%clk 00:13:00]} {[%emt 00:00:54]} exd3 {[%clk 00:13:04]}
{[%emt 00:00:33]} 13. Ne3 {[%clk 00:12:36]} {[%emt 00:00:27]} Qc7 {[%clk
00:10:29]} {[%emt 00:02:38]} 14. Rd2 {[%clk 00:12:02]} {[%emt 00:00:37]} Rad8
{[%clk 00:09:47]} {[%emt 00:00:45]} 15. Qa4 {[%clk 00:11:47]} {[%emt 00:00:18]}
Bb7 {[%clk 00:09:40]} {[%emt 00:00:10]} 16. Nxd3 {[%clk 00:10:50]} {[%emt
00:01:01]} a6 {[%clk 00:09:15]} {[%emt 00:00:29]} 17. Qc2 {[%clk 00:10:42]}
{[%emt 00:00:10]} e5 {[%clk 00:08:01]} {[%emt 00:01:17]} 18. Rf2 {[%clk
00:08:50]} {[%emt 00:01:55]} exf4 {[%clk 00:07:02]} {[%emt 00:01:02]} 19. Nxf4
{[%clk 00:08:37]} {[%emt 00:00:16]} Ne5 {[%clk 00:06:46]} {[%emt 00:00:19]} 20.
Bxb7 {[%clk 00:08:19]} {[%emt 00:00:22]} Qxb7 {[%clk 00:06:47]} {[%emt
00:00:02]} 21. Qe2 {[%clk 00:07:29]} {[%emt 00:00:53]} b5 {[%clk 00:05:39]}
{[%emt 00:01:11]} 22. Bd2 {[%clk 00:06:52]} {[%emt 00:00:39]} Rfe8 {[%clk
00:04:30]} {[%emt 00:01:13]} 23. Qf1 {[%clk 00:06:12]} {[%emt 00:00:42]} Rxd2
{[%clk 00:04:06]} {[%emt 00:00:27]} 24. Rxd2 {[%clk 00:05:46]} {[%emt
00:00:29]} Nf3+ {[%clk 00:04:07]} {[%emt 00:00:02]} 25. Kf2 {[%clk 00:05:43]}
{[%emt 00:00:06]} Nxd2 {[%clk 00:04:07]} {[%emt 00:00:03]} 26. Qe2 {[%clk
00:05:34]} {[%emt 00:00:12]} Ne4+ {[%clk 00:03:53]} {[%emt 00:00:18]} 27. Kf1
{[%clk 00:05:32]} {[%emt 00:00:05]} f5 {[%clk 00:03:44]} {[%emt 00:00:13]} 28.
Rd1 {[%clk 00:05:19]} {[%emt 00:00:16]} c4 {[%clk 00:03:13]} {[%emt 00:00:33]}
29. Qe1 {[%clk 00:03:40]} {[%emt 00:01:42]} Nc6 {[%clk 00:02:28]} {[%emt
00:00:48]} 30. Ne2 {[%clk 00:02:38]} {[%emt 00:01:04]} Ne5 {[%clk 00:02:18]}
{[%emt 00:00:14]} 31. Rd5 {[%clk 00:02:17]} {[%emt 00:00:24]} Nd3 {[%clk
00:01:52]} {[%emt 00:00:29]} 32. Qb1 {[%clk 00:02:03]} {[%emt 00:00:16]} Nd2+
{[%clk 00:01:52]} {[%emt 00:00:03]} 0-1

[Event "Jeux du Barreau 2019"]
[Site "Paris, France"]
[Date "2019.07.10"]
[Round "2.3"]
[White "Aflalo, Sophie"]
[Black "Clair, Michael"]
[Result "1-0"]
[TimeControl "15+3"]
[WhiteElo "2094"]
[BlackElo "1726"]

1. e4 {[%clk 00:15:04]} {[%emt 00:00:01]} d6 {[%clk 00:14:58]} {[%emt
00:00:08]} 2. Nc3 {[%clk 00:14:53]} {[%emt 00:00:14]} Nf6 {[%clk 00:14:50]}
{[%emt 00:00:11]} 3. f4 {[%clk 00:14:43]} {[%emt 00:00:14]} d5 {[%clk
00:14:29]} {[%emt 00:00:23]} 4. e5 {[%clk 00:14:37]} {[%emt 00:00:09]} d4
{[%clk 00:14:32]} 5. exf6 {[%clk 00:13:35]} {[%emt 00:01:06]} dxc3 {[%clk
00:14:30]} {[%emt 00:00:04]} 6. fxg7 {[%clk 00:13:30]} {[%emt 00:00:08]} cxd2+
{[%clk 00:14:03]} {[%emt 00:00:30]} 7. Bxd2 {[%clk 00:13:08]} {[%emt 00:00:23]}
Bxg7 {[%clk 00:13:55]} {[%emt 00:00:11]} 8. c3 {[%clk 00:13:09]} {[%emt
00:00:04]} Nc6 {[%clk 00:12:14]} {[%emt 00:01:43]} 9. Bc4 {[%clk 00:12:54]}
{[%emt 00:00:17]} Qd6 {[%clk 00:10:43]} {[%emt 00:01:34]} 10. Qe2 {[%clk
00:12:36]} {[%emt 00:00:23]} Bd7 {[%clk 00:09:04]} {[%emt 00:01:42]} 11. Nf3
{[%clk 00:12:04]} {[%emt 00:00:34]} e6 {[%clk 00:06:50]} {[%emt 00:02:18]} 12.
O-O {[%clk 00:11:24]} {[%emt 00:00:43]} Qc5+ {[%clk 00:06:24]} {[%emt
00:00:29]} 13. Be3 {[%emt 00:00:11]} Qh5 14. Qf2 {[%clk 00:08:38]} {[%emt
00:02:41]} Bf8 {[%clk 00:04:13]} {[%emt 00:02:17]} 15. b4 {[%clk 00:08:25]}
{[%emt 00:00:16]} Rg8 {[%clk 00:03:47]} {[%emt 00:00:29]} 16. a4 {[%clk
00:07:56]} {[%emt 00:00:32]} Ne7 {[%clk 00:03:06]} {[%emt 00:00:43]} 17. Be2
{[%clk 00:07:18]} {[%emt 00:00:40]} Nf5 {[%clk 00:01:50]} {[%emt 00:01:20]} 18.
Nd4 {[%clk 00:05:59]} {[%emt 00:01:22]} Qg6 {[%clk 00:01:39]} {[%emt 00:00:14]}
19. Nxf5 {[%clk 00:05:51]} {[%emt 00:00:10]} Qxf5 {[%clk 00:01:32]} {[%emt
00:00:11]} 20. Bf3 {[%clk 00:05:48]} {[%emt 00:00:05]} Bc6 {[%clk 00:00:39]}
{[%emt 00:00:56]} 21. Bxc6+ {[%clk 00:05:45]} {[%emt 00:00:06]} bxc6 {[%clk
00:00:41]} {[%emt 00:00:02]} 22. Rad1 {[%clk 00:05:36]} {[%emt 00:00:12]} Bd6
{[%clk 00:00:43]} {[%emt 00:00:02]} 23. Qf3 {[%clk 00:05:29]} {[%emt 00:00:09]}
Ke7 {[%clk 00:00:39]} {[%emt 00:00:07]} 24. Qxc6 {[%clk 00:05:06]} {[%emt
00:00:26]} Qc2 {[%clk 00:00:28]} {[%emt 00:00:15]} 25. f5 {[%clk 00:03:44]}
{[%emt 00:01:25]} f6 {[%clk 00:00:10]} {[%emt 00:00:21]} 26. Rxd6 {[%clk
00:03:36]} {[%emt 00:00:11]} cxd6 {[%clk 00:00:11]} {[%emt 00:00:03]} 27. Qb7+
{[%clk 00:03:37]} {[%emt 00:00:01]} Kf8 {[%clk 00:00:07]} {[%emt 00:00:07]} 28.
Qxa8+ {[%clk 00:03:35]} {[%emt 00:00:05]} 1-0